Body Name,Body,Service Level,Expense Type,Expense Code,Narrative,Date,Transaction Number,Amount,Capital and Revenue,Supplier Name,Supplier ID
South Ribble Council,http://statistics.data.gov.uk/doc/local-authority/30UN,Development Enterprise & Comm Mgnt,Advertising,4842,"Delivery, Hire and Collection of `The Road to Rio` exhibition",03/02/2016,0000395696,650.00,Revenue,A S LEWIS HERITAGE SERVICES,00119946
South Ribble Council,http://statistics.data.gov.uk/doc/local-authority/30UN,Housing,Cap Grant- Improve Grants,C570,DFG WORKS AT 32 PAGES COURT AGREED TO PAY 50%,19/02/2016,0000400877,"4,305.50",Revenue,ABBI PROPERTY SERVICES LTD,131357
South Ribble Council,http://statistics.data.gov.uk/doc/local-authority/30UN,Information Services,Peripherals,4248,Escrow agreement annual fee for period 1/2/16 to 31/1/17,03/02/2016,0000400445,179.50,Revenue,ABRITAS LTD,130710
South Ribble Council,http://statistics.data.gov.uk/doc/local-authority/30UN,Information Services,Peripherals,4248,Disk usage fee for period October 2015 to December 2015,03/02/2016,0000400445,473.76,Revenue,ABRITAS LTD,130710
South Ribble Council,http://statistics.data.gov.uk/doc/local-authority/30UN,Information Services,Peripherals,4247,Fujitsu Scansnap s 1300i deluxe,19/02/2016,0000401196,358.00,Revenue,ACS SYSTEMS UK LTD,00070166
South Ribble Council,http://statistics.data.gov.uk/doc/local-authority/30UN,Information Services,Peripherals,4247,Fujitsu S300 softcase,19/02/2016,0000401196,53.60,Revenue,ACS SYSTEMS UK LTD,00070166
South Ribble Council,http://statistics.data.gov.uk/doc/local-authority/30UN,Revenues Plus,Financial,4811,PO trans,03/02/2016,0000400442,927.30,Revenue,ALLPAY LTD,00122276
South Ribble Council,http://statistics.data.gov.uk/doc/local-authority/30UN,Revenues Plus,Financial,4811,paypoint,03/02/2016,0000400442,147.92,Revenue,ALLPAY LTD,00122276
South Ribble Council,http://statistics.data.gov.uk/doc/local-authority/30UN,Revenues Plus,Financial,4811,webcam,03/02/2016,0000400442,46.00,Revenue,ALLPAY LTD,00122276
South Ribble Council,http://statistics.data.gov.uk/doc/local-authority/30UN,Property Services,Energy Costs,2303,Annual metering charge for Civic Centre 2015/2016,18/02/2016,0000401197,432.00,Revenue,AMEY :RE ENTERPRISE,131265
South Ribble Council,http://statistics.data.gov.uk/doc/local-authority/30UN,Area 2 - Waste Transport/Eastern & Central Teams,Printing,4120,A5 PRESENTATION BINDERS & DIVIDERS IN WHITE,18/02/2016,0000400875,810.00,Revenue,AMJ LTD (THE STATIONERY STORE),00096946
South Ribble Council,http://statistics.data.gov.uk/doc/local-authority/30UN,Homelessness,Contributions,4730,rent in advance for private tenancy ADDRESS REDACTED under RBS,05/02/2016,0000400501,390.00,Revenue,NAME REDACTED,131832
South Ribble Council,http://statistics.data.gov.uk/doc/local-authority/30UN,Area 3 - Parks/Leyland East West,Professional Fees,4510,"CORPORATE MEMBERSHIP 2016CO70361",18/02/2016,0000400502,101.40,Revenue,ARBORICULTURAL ASSOCIATION,00122302
South Ribble Council,http://statistics.data.gov.uk/doc/local-authority/30UN,Area 3 - Parks/Leyland East West,Professional Fees,4510,corporate,18/02/2016,0000400502,188.32,Revenue,ARBORICULTURAL ASSOCIATION,00122302
South Ribble Council,http://statistics.data.gov.uk/doc/local-authority/30UN,Planning,Other Misc,485R,refund app,26/02/2016,0000401216,720.00,Revenue,BAE SYSTEMS OPERATIONS LTD,130161
South Ribble Council,http://statistics.data.gov.uk/doc/local-authority/30UN,Area 3 - Parks/Leyland East West,Materials General,4046,10 TREES,24/02/2016,0000400868,212.00,Revenue,BANNISTER HALL LANDSCAPE SUPPLIES,00117786
South Ribble Council,http://statistics.data.gov.uk/doc/local-authority/30UN,Area 3 - Parks/Leyland East West,Materials General,4046,non vat item,24/02/2016,0000400868,56.00,Revenue,BANNISTER HALL LANDSCAPE SUPPLIES,00117786
South Ribble Council,http://statistics.data.gov.uk/doc/local-authority/30UN,Area 3 - Parks/Leyland East West,Grounds Maint Cntrctrs Chgs,4657,Repairs/replacement lamps & Ignitors for column lights around tardy gate playground.,03/02/2016,0000395554,716.74,Revenue,BELEC ELECTRICAL LTD,130290
South Ribble Council,http://statistics.data.gov.uk/doc/local-authority/30UN,Property Services,Rep & Maint Premises,2020,Please supply new timers at Moss Side Community Centre,18/02/2016,0000400864,174.26,Revenue,BELEC ELECTRICAL LTD,130290
South Ribble Council,http://statistics.data.gov.uk/doc/local-authority/30UN,Property Services,Rep & Maint Premises,2020,"Please repair the door contacts at the Civic Centre, repair the lights to the rear & front  in gateway",18/02/2016,0000400864,110.00,Revenue,BELEC ELECTRICAL LTD,130290
South Ribble Council,http://statistics.data.gov.uk/doc/local-authority/30UN,Property Services,Rep & Maint Premises,2024,Please check the electrical usage at Hern Avenue & Longton Pavilions,18/02/2016,0000400864,44.00,Revenue,BELEC ELECTRICAL LTD,130290
South Ribble Council,http://statistics.data.gov.uk/doc/local-authority/30UN,Property Services,Rep & Maint Premises,2020,"Civic Centre Please supply materials and labour install a new electrical supply on the 3rd floor, supplies",18/02/2016,0000400865,482.93,Revenue,BELEC ELECTRICAL LTD,130290
South Ribble Council,http://statistics.data.gov.uk/doc/local-authority/30UN,Area 2 - Waste Transport/Eastern & Central Teams,Operational Furniture & Equip,4010,"1 WIRE, 6 NOZZLES, 6 SHIELDS, 1 GUN, 1 PULLEY, 1 MASK - GA",03/02/2016,0000395317,339.03,Revenue,BOC GASES,00015147
South Ribble Council,http://statistics.data.gov.uk/doc/local-authority/30UN,Area 2 - Waste Transport/Eastern & Central Teams,Materials General,4040,YEARLY RENTAL OF OXYGEN SIZE W (X2) TO 1.1.17,03/02/2016,0000395714,217.70,Revenue,BOC GASES,00015147
South Ribble Council,http://statistics.data.gov.uk/doc/local-authority/30UN,Area 2 - Waste Transport/Eastern & Central Teams,Materials General,4040,YEARLY RENTAL OF DISSOLVED ACETYLENE SIZE H (X2),03/02/2016,0000395714,286.10,Revenue,BOC GASES,00015147
South Ribble Council,http://statistics.data.gov.uk/doc/local-authority/30UN,Area 2 - Waste Transport/Eastern & Central Teams,Materials General,4040,ac ff,03/02/2016,0000395714,2.00,Revenue,BOC GASES,00015147
South Ribble Council,http://statistics.data.gov.uk/doc/local-authority/30UN,Information Services,Peripherals,4246,BCS Approved Centre Accreditation renewal due January 2016,03/02/2016,0000395715,420.00,Revenue,BRITISH COMPUTER SOCIETY,00072627
South Ribble Council,http://statistics.data.gov.uk/doc/local-authority/30UN,Healthy Communities,Other Misc,4851,Payment for the delivery of: Jacqui Lowe Tennis coaching `Active School` Coaching Programme Sept,10/02/2016,0000400842,555.00,Revenue,BROWNEDGE ST MARYS R C HIGH SCHOOL,00015707
South Ribble Council,http://statistics.data.gov.uk/doc/local-authority/30UN,Neighbourhood Admin & Support,Materials General,4040,DERBY SLIMLINE LITTER BIN WITH ASHTRAY (BLUE) - BX45 2596,18/02/2016,0000400896,"5,520.00",Revenue,BROXAP LTD,00028736
South Ribble Council,http://statistics.data.gov.uk/doc/local-authority/30UN,Area 3 - Parks/Leyland East West,Grounds Maint Cntrctrs Chgs,4657,4605078 GALV WELDED MESH 9/0/6  900 X 2`` X 2`` X 16g 30MTR,18/02/2016,0000401200,638.00,Revenue,C & W BERRY LTD,00015231
South Ribble Council,http://statistics.data.gov.uk/doc/local-authority/30UN,Area 2 - Waste Transport/Eastern & Central Teams,External Contractors Charges,4570,"Spec Repair PJ62 UCG, JFC6137, ",03/02/2016,0000395610,363.93,Revenue,CENTRAL DIESEL,00077282
South Ribble Council,http://statistics.data.gov.uk/doc/local-authority/30UN,Area 2 - Waste Transport/Eastern & Central Teams,Materials General,4040,1 GEAR CONTROL PAD PJ62 UCL JFC6261,05/02/2016,0000400492,437.06,Revenue,CENTRAL DIESEL,00077282
South Ribble Council,http://statistics.data.gov.uk/doc/local-authority/30UN,Area 2 - Waste Transport/Eastern & Central Teams,Materials General,4040,freight,05/02/2016,0000400492,12.00,Revenue,CENTRAL DIESEL,00077282
South Ribble Council,http://statistics.data.gov.uk/doc/local-authority/30UN,Area 3 - Parks/Leyland East West,Grounds Maint Cntrctrs Chgs,4657,1200mm WIDE ESTATE FENCING GATE + POSTS,12/02/2016,0000400849,240.00,Revenue,CENTREWIRE,00097657
South Ribble Council,http://statistics.data.gov.uk/doc/local-authority/30UN,Area 3 - Parks/Leyland East West,Grounds Maint Cntrctrs Chgs,4657,DELIVERY,12/02/2016,0000400849,110.00,Revenue,CENTREWIRE,00097657
South Ribble Council,http://statistics.data.gov.uk/doc/local-authority/30UN,Shared Financial Services,External Contractors Charges,4570,Shared Financial Services April 2015 to March 2016,10/02/2016,0000400530,"137,500.00",Revenue,CHORLEY BOROUGH COUNCIL,00017352
South Ribble Council,http://statistics.data.gov.uk/doc/local-authority/30UN,Shared Assurance Services,Training Expense-Course Fees,1402,Training course for 275.00 plus VAT ,26/02/2016,0000401235,275.00,Revenue,CIPFA,00017187
South Ribble Council,http://statistics.data.gov.uk/doc/local-authority/30UN,Information Services,Capital Expenditure,C234,Switch to 0300 Number - Quotation 0300-0012 Rev01 - South Ribble Borough Council. 0300 number up,19/02/2016,0000389237,"1,075.00",Revenue,CIVICA UK LTD,00102717
South Ribble Council,http://statistics.data.gov.uk/doc/local-authority/30UN,Healthy Communities,Other Misc,4851,Phase 2 - Survey and drawing of orienteering maps for the following schools and teaching packs ,03/02/2016,0000398265,"1,120.00",Revenue,Cloughaman Maps,131671
South Ribble Council,http://statistics.data.gov.uk/doc/local-authority/30UN,Regeneration,Other Misc,4851,Batteries for Christmas Lights 30 sets of 12 360 Batteries,24/02/2016,0000400893,379.55,Revenue,COMBINED PRECISION COMPONENTS PLC,00017954
South Ribble Council,http://statistics.data.gov.uk/doc/local-authority/30UN,Healthy Communities,Operational Furniture & Equip,4013,"Repair and maintenance of kitchen equipment , oven and waste disposal",10/02/2016,0000394851,"1,209.60",Revenue,COMMERCIAL KITCHEN SERVICES LTD,00019538
South Ribble Council,http://statistics.data.gov.uk/doc/local-authority/30UN,Regeneration,Capital Expenditure,C234,8 no Pipe insert bases 3 no Pipe insert tops 12 no Pipe end top caps ,19/02/2016,0000401208,"2,624.00",Revenue,Coupe Castings Ltd,131284
South Ribble Council,http://statistics.data.gov.uk/doc/local-authority/30UN,Regeneration,Capital Expenditure,C234,"8 no Pipe insert bases3 no Pipe insert top12 no Pipe end top caps",19/02/2016,0000401209,660.00,Revenue,Coupe Castings Ltd,131284
South Ribble Council,http://statistics.data.gov.uk/doc/local-authority/30UN,Regeneration,Capital Expenditure,C234,Preparing written advice and advising by telephone,03/02/2016,0000395630,750.00,Revenue,NAME REDACTED,131704
South Ribble Council,http://statistics.data.gov.uk/doc/local-authority/30UN,Regeneration,Capital Expenditure,C234,112 Oak Sleepers 225 x 125mm Delivered to site: WW1 Memorial Lostock Lane Junction Watkin Lane,24/02/2016,0000400862,"2,918.25",Revenue,DEREK FOX & SONS (TIMBER) LTD,00021694
South Ribble Council,http://statistics.data.gov.uk/doc/local-authority/30UN,Area 3 - Parks/Leyland East West,Grounds Maint Cntrctrs Chgs,4657,1 NO. EVERGREEN BENCH IN GREEN (438.00 + 50 DELIVERY CHARGE),03/02/2016,0000395318,488.00,Revenue,EARTH ANCHORS LTD,00020925
South Ribble Council,http://statistics.data.gov.uk/doc/local-authority/30UN,Area 3 - Parks/Leyland East West,Other Misc,4851,1 NO. EVERGREEN SEAT IN GREEN (565.00 + 50.00 DELIVERY),03/02/2016,0000395318,615.00,Revenue,EARTH ANCHORS LTD,00020925
South Ribble Council,http://statistics.data.gov.uk/doc/local-authority/30UN,Information Services,Peripherals,4260,,18/02/2016,0000400885,"2,053.48",Revenue,EE Ltd,131653
South Ribble Council,http://statistics.data.gov.uk/doc/local-authority/30UN,Information Services,Capital Expenditure,C234,Poweredge R630  - incl. spare 15k drive and delivery,10/02/2016,0000400496,"2,860.00",Revenue,ETB TECHNOLOGIES LTD,130192
South Ribble Council,http://statistics.data.gov.uk/doc/local-authority/30UN,Healthy Communities,Sports Dev Expenses,4894,Drawstring Nylon Conference Bags - 250 @ 2.24 each = 560.00 + Vat,24/02/2016,0000396479,560.00,Revenue,Everything Branded,131826
South Ribble Council,http://statistics.data.gov.uk/doc/local-authority/30UN,Area 2 - Waste Transport/Eastern & Central Teams,External Contractors Charges,4570,Clinical Waste Collections DECEMBER 2015,05/02/2016,0000396561,465.69,Revenue,FCC Environment Services (UK) Ltd,131612
South Ribble Council,http://statistics.data.gov.uk/doc/local-authority/30UN,Area 2 - Waste Transport/Eastern & Central Teams,External Contractors Charges,4570,Residual Waste DECEMBER 2015,18/02/2016,0000400565,"39,047.04",Revenue,FCC Environment Services (UK) Ltd,131612
South Ribble Council,http://statistics.data.gov.uk/doc/local-authority/30UN,Area 2 - Waste Transport/Eastern & Central Teams,External Contractors Charges,4570,Dry Recyclable (Non Terraced) DECEMBER 2015,18/02/2016,0000400565,"40,023.51",Revenue,FCC Environment Services (UK) Ltd,131612
South Ribble Council,http://statistics.data.gov.uk/doc/local-authority/30UN,Area 2 - Waste Transport/Eastern & Central Teams,External Contractors Charges,4570,Dry Recyclable (Terraced) DECEMBER 2015,18/02/2016,0000400565,"1,974.32",Revenue,FCC Environment Services (UK) Ltd,131612
South Ribble Council,http://statistics.data.gov.uk/doc/local-authority/30UN,Area 2 - Waste Transport/Eastern & Central Teams,External Contractors Charges,4570,Organic Waste (Non Terraced) DECEMBER 2015,18/02/2016,0000400565,"27,265.30",Revenue,FCC Environment Services (UK) Ltd,131612
South Ribble Council,http://statistics.data.gov.uk/doc/local-authority/30UN,Area 2 - Waste Transport/Eastern & Central Teams,External Contractors Charges,4570,Organic Waste (Terraced) DECEMBER 2015,18/02/2016,0000400565,"5,755.43",Revenue,FCC Environment Services (UK) Ltd,131612
South Ribble Council,http://statistics.data.gov.uk/doc/local-authority/30UN,Area 2 - Waste Transport/Eastern & Central Teams,External Contractors Charges,4570,Schedule 2 Properties DECEMBER 2015,18/02/2016,0000400565,"1,648.72",Revenue,FCC Environment Services (UK) Ltd,131612
South Ribble Council,http://statistics.data.gov.uk/doc/local-authority/30UN,Area 2 - Waste Transport/Eastern & Central Teams,External Contractors Charges,4570,Commercial Waste DECEMBER 2015,18/02/2016,0000400565,"6,456.38",Revenue,FCC Environment Services (UK) Ltd,131612
South Ribble Council,http://statistics.data.gov.uk/doc/local-authority/30UN,Area 2 - Waste Transport/Eastern & Central Teams,External Contractors Charges,4570,Bulky Waste DECEMBER 2015,18/02/2016,0000400565,892.77,Revenue,FCC Environment Services (UK) Ltd,131612
South Ribble Council,http://statistics.data.gov.uk/doc/local-authority/30UN,Area 2 - Waste Transport/Eastern & Central Teams,External Contractors Charges,4570,WEEE Collections DECEMBER 2015,18/02/2016,0000400565,333.91,Revenue,FCC Environment Services (UK) Ltd,131612
South Ribble Council,http://statistics.data.gov.uk/doc/local-authority/30UN,Area 2 - Waste Transport/Eastern & Central Teams,External Contractors Charges,4570,REPLACEMENT BINS DECEMBER 2015,18/02/2016,0000400565,"5,000.00",Revenue,FCC Environment Services (UK) Ltd,131612
South Ribble Council,http://statistics.data.gov.uk/doc/local-authority/30UN,Area 2 - Waste Transport/Eastern & Central Teams,Balance Sheet,0030,RETENTION CLAIM BACK JUNE - NOVEMBER 2015,18/02/2016,0000400565,"1,500.00",Revenue,FCC Environment Services (UK) Ltd,131612
South Ribble Council,http://statistics.data.gov.uk/doc/local-authority/30UN,Area 2 - Waste Transport/Eastern & Central Teams,External Contractors Charges,4570,clinical waste,18/02/2016,0000400565,568.66,Revenue,FCC Environment Services (UK) Ltd,131612
South Ribble Council,http://statistics.data.gov.uk/doc/local-authority/30UN,Area 2 - Waste Transport/Eastern & Central Teams,Balance Sheet,0030,Nov Retention Refuse,18/02/2016,0000400565,"-2,447.37",Revenue,FCC Environment Services (UK) Ltd,131612
South Ribble Council,http://statistics.data.gov.uk/doc/local-authority/30UN,Area 2 - Waste Transport/Eastern & Central Teams,Balance Sheet,0030,Nov retention recycling,18/02/2016,0000400565,"-3,750.93",Revenue,FCC Environment Services (UK) Ltd,131612
South Ribble Council,http://statistics.data.gov.uk/doc/local-authority/30UN,Area 2 - Waste Transport/Eastern & Central Teams,External Contractors Charges,4570,Residual Waste JANUARY 2016,18/02/2016,0000401202,"39,047.04",Revenue,FCC Environment Services (UK) Ltd,131612
South Ribble Council,http://statistics.data.gov.uk/doc/local-authority/30UN,Area 2 - Waste Transport/Eastern & Central Teams,External Contractors Charges,4570,Dry Recycling (Non Terraced) JANUARY 2016,18/02/2016,0000401202,"40,023.51",Revenue,FCC Environment Services (UK) Ltd,131612
South Ribble Council,http://statistics.data.gov.uk/doc/local-authority/30UN,Area 2 - Waste Transport/Eastern & Central Teams,External Contractors Charges,4570,Dry Recycling (Terraced) JANUARY 2016,18/02/2016,0000401202,"1,974.32",Revenue,FCC Environment Services (UK) Ltd,131612
South Ribble Council,http://statistics.data.gov.uk/doc/local-authority/30UN,Area 2 - Waste Transport/Eastern & Central Teams,External Contractors Charges,4570,Organic Waste (Non Terraced) JANUARY 2016,18/02/2016,0000401202,"27,265.30",Revenue,FCC Environment Services (UK) Ltd,131612
South Ribble Council,http://statistics.data.gov.uk/doc/local-authority/30UN,Area 2 - Waste Transport/Eastern & Central Teams,External Contractors Charges,4570,Organic Waste (Terraced),18/02/2016,0000401202,"5,755.43",Revenue,FCC Environment Services (UK) Ltd,131612
South Ribble Council,http://statistics.data.gov.uk/doc/local-authority/30UN,Area 2 - Waste Transport/Eastern & Central Teams,External Contractors Charges,4570,Schedule 2 Properties JANUARY 2016,18/02/2016,0000401202,"1,648.72",Revenue,FCC Environment Services (UK) Ltd,131612
South Ribble Council,http://statistics.data.gov.uk/doc/local-authority/30UN,Area 2 - Waste Transport/Eastern & Central Teams,External Contractors Charges,4570,Commercial properties JANUARY 2016,18/02/2016,0000401202,"6,456.38",Revenue,FCC Environment Services (UK) Ltd,131612
South Ribble Council,http://statistics.data.gov.uk/doc/local-authority/30UN,Area 2 - Waste Transport/Eastern & Central Teams,External Contractors Charges,4570,Bulky Waste JANUARY 2016,18/02/2016,0000401202,892.77,Revenue,FCC Environment Services (UK) Ltd,131612
South Ribble Council,http://statistics.data.gov.uk/doc/local-authority/30UN,Area 2 - Waste Transport/Eastern & Central Teams,External Contractors Charges,4570,WEEE Collections JANUARY 2016,18/02/2016,0000401202,333.91,Revenue,FCC Environment Services (UK) Ltd,131612
South Ribble Council,http://statistics.data.gov.uk/doc/local-authority/30UN,Area 2 - Waste Transport/Eastern & Central Teams,External Contractors Charges,4570,Clinical Waste JANUARY 2016,18/02/2016,0000401202,568.66,Revenue,FCC Environment Services (UK) Ltd,131612
South Ribble Council,http://statistics.data.gov.uk/doc/local-authority/30UN,Area 2 - Waste Transport/Eastern & Central Teams,External Contractors Charges,4570,REPLACEMENT BINS JANUARY 2016,18/02/2016,0000401202,"5,000.00",Revenue,FCC Environment Services (UK) Ltd,131612
South Ribble Council,http://statistics.data.gov.uk/doc/local-authority/30UN,Area 2 - Waste Transport/Eastern & Central Teams,Balance Sheet,0030,JAN RETENTION REFUSE,18/02/2016,0000401202,"-2,447.37",Revenue,FCC Environment Services (UK) Ltd,131612
South Ribble Council,http://statistics.data.gov.uk/doc/local-authority/30UN,Area 2 - Waste Transport/Eastern & Central Teams,Balance Sheet,0030,JAN RETENTION RECYCLING,18/02/2016,0000401202,"-3,750.93",Revenue,FCC Environment Services (UK) Ltd,131612
South Ribble Council,http://statistics.data.gov.uk/doc/local-authority/30UN,Area 2 - Waste Transport/Eastern & Central Teams,Balance Sheet,0030,AGREEDRETENTION CLAIM BACK,18/02/2016,0000401202,"-40,459.63",Revenue,FCC Environment Services (UK) Ltd,131612
South Ribble Council,http://statistics.data.gov.uk/doc/local-authority/30UN,Information Services,Peripherals,4248,Annual License renewal  23 Mar 2016 to 22 Mar 2017,10/02/2016,0000395557,"21,420.00",Revenue,FIRMSTEP,00114022
South Ribble Council,http://statistics.data.gov.uk/doc/local-authority/30UN,Housing,Contributions,4730,Gas Servicing for Winter Wamth Scheme,03/02/2016,0000395583,450.00,Revenue,GOS Heating Ltd,131387
South Ribble Council,http://statistics.data.gov.uk/doc/local-authority/30UN,Housing,Contributions,4730,Repairs and replacements for Winter Warmth Scheme,03/02/2016,0000395584,285.95,Revenue,GOS Heating Ltd,131387
South Ribble Council,http://statistics.data.gov.uk/doc/local-authority/30UN,Housing,Professional Fees,4510,Desktop Exercise to determine options for using commuted sums for affordable housing,10/02/2016,0000395697,"5,000.00",Revenue,Grant Thornton UK LLP,130718
South Ribble Council,http://statistics.data.gov.uk/doc/local-authority/30UN,Area 3 - Parks/Leyland East West,External Contractors Charges,4570,TREE WORK AT ROBERTS COURT/FOREST WAY LEYLAND,03/02/2016,0000395581,"4,250.00",Revenue,Greenlands Tree Care Ltd,131613
South Ribble Council,http://statistics.data.gov.uk/doc/local-authority/30UN,Neighbourhood Admin & Support,Clothing- Uniforms & Laundry,4410,WATERPROOF JACKETS  - YELLOW - medium - SRC.HVJPU,10/02/2016,0000400819,129.00,Revenue,GUARDSMAN LTD,130321
South Ribble Council,http://statistics.data.gov.uk/doc/local-authority/30UN,Neighbourhood Admin & Support,Clothing- Uniforms & Laundry,4410,WATERPROOF JACKETS  - YELLOW - large - SRC.HVJPU,10/02/2016,0000400819,129.00,Revenue,GUARDSMAN LTD,130321
South Ribble Council,http://statistics.data.gov.uk/doc/local-authority/30UN,Neighbourhood Admin & Support,Clothing- Uniforms & Laundry,4410,WATERPROOF JACKETS  - YELLOW - extra large - SRC.HVJPU,10/02/2016,0000400819,129.00,Revenue,GUARDSMAN LTD,130321
South Ribble Council,http://statistics.data.gov.uk/doc/local-authority/30UN,Neighbourhood Admin & Support,Clothing- Uniforms & Laundry,4410,WATERPROOF TROUSERS - YELLOW  - medium - HVTPU,10/02/2016,0000400819,45.00,Revenue,GUARDSMAN LTD,130321
South Ribble Council,http://statistics.data.gov.uk/doc/local-authority/30UN,Neighbourhood Admin & Support,Clothing- Uniforms & Laundry,4410,WATERPROOF TROUSERS - YELLOW - large - HVTPU,10/02/2016,0000400819,45.00,Revenue,GUARDSMAN LTD,130321
South Ribble Council,http://statistics.data.gov.uk/doc/local-authority/30UN,Area 2 - Waste Transport/Eastern & Central Teams,Materials General,4040,ASSORTED FILTERS (IMPREST STOCK),10/02/2016,0000400520,293.49,Revenue,H & J SERVICES LTD,00114446
South Ribble Council,http://statistics.data.gov.uk/doc/local-authority/30UN,Democratic Services,Other Misc,4422,Annual support and maintenance for AVantGuard Semi network licence + 8 additional clients,24/02/2016,0000401211,"1,590.55",Revenue,HALAROSE LTD,00024358
South Ribble Council,http://statistics.data.gov.uk/doc/local-authority/30UN,Information Services,Peripherals,4244,Annual subscription for Corporate Member of IRMS for period 01/01/16 - 31/12/17,03/02/2016,0000395319,250.00,Revenue,INFORMATION & RECORD MANAGEMENT SOCIETY,130889
South Ribble Council,http://statistics.data.gov.uk/doc/local-authority/30UN,Information Services,Peripherals,4244,bulliten,03/02/2016,0000395319,50.00,Revenue,INFORMATION & RECORD MANAGEMENT SOCIETY,130889
South Ribble Council,http://statistics.data.gov.uk/doc/local-authority/30UN,HR & Communications,Advertising,4848,VIDEO EDITING SOFTWARE,03/02/2016,0000395547,266.76,Revenue,INSIGHT UK,00120744
South Ribble Council,http://statistics.data.gov.uk/doc/local-authority/30UN,Regeneration,Capital Expenditure,C234,3 x AutoCAD subscriptions for 3 years - 2016 to 2019,24/02/2016,0000400535,"4,413.48",Revenue,INSIGHT UK,00120744
South Ribble Council,http://statistics.data.gov.uk/doc/local-authority/30UN,Information Services,Peripherals,4247,"Dell Latitude E5550/5550, CTO",26/02/2016,0000400817,"2,279.97",Revenue,INSIGHT UK,00120744
South Ribble Council,http://statistics.data.gov.uk/doc/local-authority/30UN,Information Services,Capital Expenditure,C234,"M6800 	Dell Precision M6800 CTO Base",26/02/2016,0000401509,"1,907.87",Revenue,INSIGHT UK,00120744
South Ribble Council,http://statistics.data.gov.uk/doc/local-authority/30UN,Neighbourhood Admin & Support,Materials General,4040,QC10 - QUICK SET CONCRETE,10/02/2016,0000400470,"1,228.64",Revenue,INSTARMAC GROUP PLC,00024905
South Ribble Council,http://statistics.data.gov.uk/doc/local-authority/30UN,Neighbourhood Admin & Support,Materials General,4040,QUICK SET CONCRETE - QC10,18/02/2016,0000400908,"1,228.64",Revenue,INSTARMAC GROUP PLC,00024905
South Ribble Council,http://statistics.data.gov.uk/doc/local-authority/30UN,Area 3 - Parks/Leyland East West,Capital Expenditure,C230,"Reconstruction of churchyard walls St Leonards Church, Walton le Dale.",12/02/2016,0000400838,"44,770.00",Revenue,John Wade Groundworks Ltd t/a Wade Group,131568
South Ribble Council,http://statistics.data.gov.uk/doc/local-authority/30UN,Property Services,Rep & Maint Premises,2020,construct a land drain at the base of the reconstructed retaining wall at St Leonards Churchyard,10/02/2016,0000400839,"2,350.00",Revenue,John Wade Groundworks Ltd t/a Wade Group,131568
South Ribble Council,http://statistics.data.gov.uk/doc/local-authority/30UN,Planning,Client Dept Charges Contractin,4581,Planning adverts in the Lancashire Evening post as and when requested up to end of March 2016,24/02/2016,0000401204,525.00,Revenue,JOHNSTON PUBLISHING (NORTH WEST),00011345
South Ribble Council,http://statistics.data.gov.uk/doc/local-authority/30UN,Planning,Client Dept Charges Contractin,4581,Planning adverts in the Lancashire Evening post as and when requested up to end of March 2016,26/02/2016,0000401453,603.75,Revenue,JOHNSTON PUBLISHING (NORTH WEST),00011345
South Ribble Council,http://statistics.data.gov.uk/doc/local-authority/30UN,Environmental Health,Materials General,4040,"Business cards printed one side Can be laminated 100 @ 60.00 VAT This includes set up origination",05/02/2016,0000400498,350.00,Revenue,JUST ADD PRINT LTD,131662
South Ribble Council,http://statistics.data.gov.uk/doc/local-authority/30UN,Property Services,Rep & Maint Premises,2020,2015/2016 contract for water hygiene monitoring at Gregson Lane Pavilion,10/02/2016,0000400500,46.00,Revenue,KNOWSLEY BLD & ENVIRONMENTAL SERVICES LT,00072656
South Ribble Council,http://statistics.data.gov.uk/doc/local-authority/30UN,Property Services,Rep & Maint Premises,2020,2015/2016 contract for water hygiene monitoring at Hern Avenue Pavilion,10/02/2016,0000400500,46.00,Revenue,KNOWSLEY BLD & ENVIRONMENTAL SERVICES LT,00072656
South Ribble Council,http://statistics.data.gov.uk/doc/local-authority/30UN,Property Services,Rep & Maint Premises,2020,2015/2016 contract for water hygiene monitoring at Higher Walton Pavilion,10/02/2016,0000400500,46.00,Revenue,KNOWSLEY BLD & ENVIRONMENTAL SERVICES LT,00072656
South Ribble Council,http://statistics.data.gov.uk/doc/local-authority/30UN,Property Services,Rep & Maint Premises,2020,2015/2016 contract for water hygiene monitoring at Holme Pavilion,10/02/2016,0000400500,46.00,Revenue,KNOWSLEY BLD & ENVIRONMENTAL SERVICES LT,00072656
South Ribble Council,http://statistics.data.gov.uk/doc/local-authority/30UN,Property Services,Rep & Maint Premises,2020,2015/2016 contract for water hygiene monitoring at Hutton Pavilion,10/02/2016,0000400500,46.00,Revenue,KNOWSLEY BLD & ENVIRONMENTAL SERVICES LT,00072656
South Ribble Council,http://statistics.data.gov.uk/doc/local-authority/30UN,Property Services,Rep & Maint Premises,2020,2015/2016 contract for water hygiene monitoring at Kingsfold pavilion,10/02/2016,0000400500,53.50,Revenue,KNOWSLEY BLD & ENVIRONMENTAL SERVICES LT,00072656
South Ribble Council,http://statistics.data.gov.uk/doc/local-authority/30UN,Property Services,Rep & Maint Premises,2020,2015/2016 contract for water hygiene monitoring at sports pavilions Worden Park formerly long pavilion,10/02/2016,0000400500,46.00,Revenue,KNOWSLEY BLD & ENVIRONMENTAL SERVICES LT,00072656
South Ribble Council,http://statistics.data.gov.uk/doc/local-authority/30UN,Property Services,Rep & Maint Premises,2020,2015/2016 contract for water hygiene monitoring at Moss Side Pavilion,10/02/2016,0000400500,53.50,Revenue,KNOWSLEY BLD & ENVIRONMENTAL SERVICES LT,00072656
South Ribble Council,http://statistics.data.gov.uk/doc/local-authority/30UN,Property Services,Rep & Maint Premises,2020,2015/2016 contract for water hygiene monitoring at Much Hoole Pavilion,10/02/2016,0000400500,46.00,Revenue,KNOWSLEY BLD & ENVIRONMENTAL SERVICES LT,00072656
South Ribble Council,http://statistics.data.gov.uk/doc/local-authority/30UN,Property Services,Rep & Maint Premises,2020,2015/2016 contract for water hygiene monitoring at Penwortham Holme,10/02/2016,0000400500,46.00,Revenue,KNOWSLEY BLD & ENVIRONMENTAL SERVICES LT,00072656
South Ribble Council,http://statistics.data.gov.uk/doc/local-authority/30UN,Property Services,Rep & Maint Premises,2020,2015/2016 contract for water hygiene monitoring at St Cuthbert`s Pavilion,10/02/2016,0000400500,46.00,Revenue,KNOWSLEY BLD & ENVIRONMENTAL SERVICES LT,00072656
South Ribble Council,http://statistics.data.gov.uk/doc/local-authority/30UN,Property Services,Rep & Maint Premises,2020,2015/2016 contract for water hygiene monitoring at Withy Grove Pavilion,10/02/2016,0000400500,53.50,Revenue,KNOWSLEY BLD & ENVIRONMENTAL SERVICES LT,00072656
South Ribble Council,http://statistics.data.gov.uk/doc/local-authority/30UN,Property Services,Rep & Maint Premises,2020,2015/2016 contract for water hygiene monitoring at Holland House Farm Pavilion,10/02/2016,0000400500,46.00,Revenue,KNOWSLEY BLD & ENVIRONMENTAL SERVICES LT,00072656
South Ribble Council,http://statistics.data.gov.uk/doc/local-authority/30UN,Property Services,Rep & Maint Premises,2020,"2015/2016 contract for water hygiene monitoring at The Derby Wing, Worden Park",10/02/2016,0000400500,43.50,Revenue,KNOWSLEY BLD & ENVIRONMENTAL SERVICES LT,00072656
South Ribble Council,http://statistics.data.gov.uk/doc/local-authority/30UN,Property Services,Rep & Maint Premises,2020,2015/2016 contract for water hygiene monitoring at Carr Street Community Centre,10/02/2016,0000400500,43.50,Revenue,KNOWSLEY BLD & ENVIRONMENTAL SERVICES LT,00072656
South Ribble Council,http://statistics.data.gov.uk/doc/local-authority/30UN,Property Services,Rep & Maint Premises,2020,2015/2016 contract for water hygiene monitoring at Kingsfold Community Centre,10/02/2016,0000400500,43.50,Revenue,KNOWSLEY BLD & ENVIRONMENTAL SERVICES LT,00072656
South Ribble Council,http://statistics.data.gov.uk/doc/local-authority/30UN,Property Services,Rep & Maint Premises,2020,2015/2016 contract for water hygiene monitoring at Higher Walton Community Centre,10/02/2016,0000400500,43.50,Revenue,KNOWSLEY BLD & ENVIRONMENTAL SERVICES LT,00072656
South Ribble Council,http://statistics.data.gov.uk/doc/local-authority/30UN,Property Services,Rep & Maint Premises,2020,2015/2016 contract for water hygiene monitoring at Moss Side Community Centre,10/02/2016,0000400500,43.50,Revenue,KNOWSLEY BLD & ENVIRONMENTAL SERVICES LT,00072656
South Ribble Council,http://statistics.data.gov.uk/doc/local-authority/30UN,Property Services,Rep & Maint Premises,2020,2015/2016 contract for water hygiene monitoring at Worden Arts & Craft Centre,10/02/2016,0000400500,58.50,Revenue,KNOWSLEY BLD & ENVIRONMENTAL SERVICES LT,00072656
South Ribble Council,http://statistics.data.gov.uk/doc/local-authority/30UN,Property Services,Rep & Maint Premises,2020,2015/2016 contract for water hygiene monitoring at Leyland Market,10/02/2016,0000400500,36.00,Revenue,KNOWSLEY BLD & ENVIRONMENTAL SERVICES LT,00072656
South Ribble Council,http://statistics.data.gov.uk/doc/local-authority/30UN,Property Services,Rep & Maint Premises,2020,2015/2016 contract for water hygiene monitoring at Worden Park Bungalow,10/02/2016,0000400500,43.50,Revenue,KNOWSLEY BLD & ENVIRONMENTAL SERVICES LT,00072656
South Ribble Council,http://statistics.data.gov.uk/doc/local-authority/30UN,Property Services,Rep & Maint Premises,2020,"2015/2016 contract for water hygiene monitoring at Crossroads toilets, Worden Park",10/02/2016,0000400500,23.00,Revenue,KNOWSLEY BLD & ENVIRONMENTAL SERVICES LT,00072656
South Ribble Council,http://statistics.data.gov.uk/doc/local-authority/30UN,Property Services,Rep & Maint Premises,2020,2015/2016 contract for water hygiene monitoring at Hope Terrace Public toilets,10/02/2016,0000400500,23.00,Revenue,KNOWSLEY BLD & ENVIRONMENTAL SERVICES LT,00072656
South Ribble Council,http://statistics.data.gov.uk/doc/local-authority/30UN,Property Services,Rep & Maint Premises,2020,2015/2016 contract for water hygiene monitoring at Longton Brick Croft,10/02/2016,0000400500,26.00,Revenue,KNOWSLEY BLD & ENVIRONMENTAL SERVICES LT,00072656
South Ribble Council,http://statistics.data.gov.uk/doc/local-authority/30UN,Property Services,Rep & Maint Premises,2020,"2015/2016 contract for water hygiene monitoring at Playground toilets, Worden Park",10/02/2016,0000400500,23.00,Revenue,KNOWSLEY BLD & ENVIRONMENTAL SERVICES LT,00072656
South Ribble Council,http://statistics.data.gov.uk/doc/local-authority/30UN,Property Services,Rep & Maint Premises,2020,2015/2016 contract for water hygiene monitoring at SR Museum & Exhibition Centre,10/02/2016,0000400500,26.00,Revenue,KNOWSLEY BLD & ENVIRONMENTAL SERVICES LT,00072656
South Ribble Council,http://statistics.data.gov.uk/doc/local-authority/30UN,Property Services,Rep & Maint Premises,2020,2015/2016 contract for water hygiene monitoring at Withy Grove public toilets,10/02/2016,0000400500,23.00,Revenue,KNOWSLEY BLD & ENVIRONMENTAL SERVICES LT,00072656
South Ribble Council,http://statistics.data.gov.uk/doc/local-authority/30UN,Property Services,Rep & Maint Premises,2020,"2015/2016 contract for water hygiene monitoring at the Civic Centre, Leyland",10/02/2016,0000400500,184.50,Revenue,KNOWSLEY BLD & ENVIRONMENTAL SERVICES LT,00072656
South Ribble Council,http://statistics.data.gov.uk/doc/local-authority/30UN,Property Services,Rep & Maint Premises,2020,2015/2016 contract for water hygiene monitoring at Moss Side Depot,10/02/2016,0000400500,112.50,Revenue,KNOWSLEY BLD & ENVIRONMENTAL SERVICES LT,00072656
South Ribble Council,http://statistics.data.gov.uk/doc/local-authority/30UN,Property Services,Rep & Maint Premises,2020,2015/2016 contract for water hygiene monitoring at Longton Pavilion,10/02/2016,0000400500,46.00,Revenue,KNOWSLEY BLD & ENVIRONMENTAL SERVICES LT,00072656
South Ribble Council,http://statistics.data.gov.uk/doc/local-authority/30UN,Healthy Communities,Other Misc,4851,"40 x This Girl Can T Shirt (black) @ 10 per unit 10 x size 8 20 x size 10 10 x size 12",03/02/2016,0000395633,400.00,Revenue,LANCASHIRE SPORT PARTNERSHIP LTD,00120003
South Ribble Council,http://statistics.data.gov.uk/doc/local-authority/30UN,Area 2 - Waste Transport/Eastern & Central Teams,External Contractors Charges,4570,SPEC REPAIR - YP11 CFM - JFC6290 - PD,18/02/2016,0000400909,452.00,Revenue,Lancashire Waste Services Limited,131510
South Ribble Council,http://statistics.data.gov.uk/doc/local-authority/30UN,HR & Communications,Training Expense-Course Fees,1405,"PLEASE BOOK TWO, 2 DAY COACHING SESSIONS TO BE DELIVERED BY LCC",05/02/2016,0000395179,"2,370.00",Revenue,LANCS COUNTY COUNCIL,00041645
South Ribble Council,http://statistics.data.gov.uk/doc/local-authority/30UN,Area 1 - Penwortham Western Parishes,Contributions,4730,Residential Parking Surplus 2014/15,10/02/2016,0000395611,414.84,Revenue,LANCS COUNTY COUNCIL,00041645
South Ribble Council,http://statistics.data.gov.uk/doc/local-authority/30UN,Neighbourhood Admin & Support,Professional Fees,4516,BACK OFFICE PROCESSING (OCTOBER - DECEMBER 2015),10/02/2016,0000395612,586.50,Revenue,LANCS COUNTY COUNCIL,00041645
South Ribble Council,http://statistics.data.gov.uk/doc/local-authority/30UN,Neighbourhood Admin & Support,Professional Fees,4516,TEC RECHARGES QUARTER 3 (OCTOBER - DECEMBER 2015),10/02/2016,0000395612,42.00,Revenue,LANCS COUNTY COUNCIL,00041645
South Ribble Council,http://statistics.data.gov.uk/doc/local-authority/30UN,HR & Communications,Training Expense-Course Fees,1405,Cable Avoidance Training for the following members of staff,12/02/2016,0000400446,440.00,Revenue,LANCS COUNTY COUNCIL,00041645
South Ribble Council,http://statistics.data.gov.uk/doc/local-authority/30UN,Housing,Cap Grant- Improve Grants,C570,Supply and install through floor lift as per quote at ADDRESS REDACTED,18/02/2016,0000400813,"9,945.00",Revenue,LANCS COUNTY COUNCIL,00041645
South Ribble Council,http://statistics.data.gov.uk/doc/local-authority/30UN,Area 1 - Penwortham Western Parishes,Professional Fees,4516,BACK OFFICE PROCESSING (JULY - SEPTEMBER 2015),12/02/2016,0000400814,569.25,Revenue,LANCS COUNTY COUNCIL,00041645
South Ribble Council,http://statistics.data.gov.uk/doc/local-authority/30UN,Area 1 - Penwortham Western Parishes,Professional Fees,4516,TEC RECHARGES QUARTER 2 (JULY - SEPTEMBER 2015),12/02/2016,0000400814,105.00,Revenue,LANCS COUNTY COUNCIL,00041645
South Ribble Council,http://statistics.data.gov.uk/doc/local-authority/30UN,Planning,Professional Fees,4510,Environmental evidence services provided by the Lancashire Record Network - Financial Year 2015/16,24/02/2016,0000401259,"1,861.00",Revenue,LANCS COUNTY COUNCIL,00041645
South Ribble Council,http://statistics.data.gov.uk/doc/local-authority/30UN,Planning,Printing,4125,Lease rental for 2015/2016 - for Hewlett Packard Plotters agreement no LDF1003966,05/02/2016,0000395586,"1,426.25",Revenue,LDF FINANCE No1 LTD,131373
South Ribble Council,http://statistics.data.gov.uk/doc/local-authority/30UN,Property Services,Capital Expenditure,C230,"Civic Centre, West Paddock, Leyland - please carry out work as per your quotation dated 8.1.2016 ",05/02/2016,0000400453,410.00,Revenue,LEYLAND CLEANING SERVICES,00002338
South Ribble Council,http://statistics.data.gov.uk/doc/local-authority/30UN,Area 2 - Waste Transport/Eastern & Central Teams,External Contractors Charges,4570,SPEC REPAIR - MV12SUF - JFC6162 - GA,03/02/2016,0000395635,536.63,Revenue,LEYLAND GARAGE SERVICE CENTRE LTD,00064541
South Ribble Council,http://statistics.data.gov.uk/doc/local-authority/30UN,Housing,Cap Grant- Improve Grants,C570,DFG Works to bathroom as per quote at ADDRESS REDACTED,19/02/2016,0000400878,"3,995.00",Revenue,M J PARK,00087434
South Ribble Council,http://statistics.data.gov.uk/doc/local-authority/30UN,Area 2 - Waste Transport/Eastern & Central Teams,External Contractors Charges,4570,"Spec repair, PJ62 UCM, JFC6263.",10/02/2016,0000400525,355.00,Revenue,M WILSON COMMERCIALS LIMITED,130533
South Ribble Council,http://statistics.data.gov.uk/doc/local-authority/30UN,Property Services,Rep & Maint Premises,2020,Annual gutter cleaning/inspections as detailed for 2015/2016 for ADDRESS REDACTED - 1 day ,03/02/2016,0000395700,108.75,Revenue,MAINCOAT LTD,00099244
South Ribble Council,http://statistics.data.gov.uk/doc/local-authority/30UN,Property Services,Rep & Maint Premises,2020,Annual gutter cleaning/inspections as detailed for 2015/2016 for ADDRESS REDACTED - 1 day ,03/02/2016,0000395700,108.75,Revenue,MAINCOAT LTD,00099244
South Ribble Council,http://statistics.data.gov.uk/doc/local-authority/30UN,Property Services,Rep & Maint Premises,2020,Annual gutter cleaning/inspections as detailed for 2015/2016 for ADDRESS REDACTED 1 day,03/02/2016,0000395700,108.75,Revenue,MAINCOAT LTD,00099244
South Ribble Council,http://statistics.data.gov.uk/doc/local-authority/30UN,Property Services,Rep & Maint Premises,2020,Annual gutter cleaning/inspections as detailed for 2015/2016 for ADDRESS REDACTED - 1 day 3 ,03/02/2016,0000395700,108.75,Revenue,MAINCOAT LTD,00099244
South Ribble Council,http://statistics.data.gov.uk/doc/local-authority/30UN,Healthy Communities,Provisions,4311,Bar stock for mayoral xmas doo,10/02/2016,0000400524,407.44,Revenue,MATTHEW CLARK WHOLESALE LTD,00047720
South Ribble Council,http://statistics.data.gov.uk/doc/local-authority/30UN,Healthy Communities,Other Misc,4851,"Nike Core Polo x 20 - Various Sizes  =  275.00 Foundation SS Top x 4  =  43.80 Team Club Hoody x",12/02/2016,0000400866,367.36,Revenue,MAUDE SPORTS,131058
South Ribble Council,http://statistics.data.gov.uk/doc/local-authority/30UN,Area 1 - Penwortham Western Parishes,Professional Fees,4521,PROVISION OF STRAY DOG SERVICE - TO COVER JANUARY 2016,18/02/2016,0000400570,300.48,Revenue,MORNINGSIDE KENNELS,00067755
South Ribble Council,http://statistics.data.gov.uk/doc/local-authority/30UN,Healthy Communities,External Contractors Charges,4575,Catering for January,03/02/2016,0000395641,570.00,Revenue,MOSS HOUSE FARM,00121808
South Ribble Council,http://statistics.data.gov.uk/doc/local-authority/30UN,Area 2 - Waste Transport/Eastern & Central Teams,External Contractors Charges,4570,LOLER INSPECTION - JFC6178 -PJ62UCL - PD,24/02/2016,0000401221,55.50,Revenue,MUNICIPAL VEHICLE INSPECTION SERVICES LT,00096645
South Ribble Council,http://statistics.data.gov.uk/doc/local-authority/30UN,Area 2 - Waste Transport/Eastern & Central Teams,External Contractors Charges,4570,LOLER INSPECTION - JFC6177 - PJ62UCG - PD,24/02/2016,0000401221,55.50,Revenue,MUNICIPAL VEHICLE INSPECTION SERVICES LT,00096645
South Ribble Council,http://statistics.data.gov.uk/doc/local-authority/30UN,Area 2 - Waste Transport/Eastern & Central Teams,External Contractors Charges,4570,LOLER INSPECTION - JFC6176 - PJ62UCH - PD,24/02/2016,0000401221,55.50,Revenue,MUNICIPAL VEHICLE INSPECTION SERVICES LT,00096645
South Ribble Council,http://statistics.data.gov.uk/doc/local-authority/30UN,Area 2 - Waste Transport/Eastern & Central Teams,External Contractors Charges,4570,LOLER INSPECTION - JFC6175 - YP11 CFM - PD,24/02/2016,0000401221,55.50,Revenue,MUNICIPAL VEHICLE INSPECTION SERVICES LT,00096645
South Ribble Council,http://statistics.data.gov.uk/doc/local-authority/30UN,Area 2 - Waste Transport/Eastern & Central Teams,External Contractors Charges,4570,LOLER INSPECTION (X2) - JFC6174 - MX04 YNL - PD,24/02/2016,0000401221,111.00,Revenue,MUNICIPAL VEHICLE INSPECTION SERVICES LT,00096645
South Ribble Council,http://statistics.data.gov.uk/doc/local-authority/30UN,HR & Communications,Training Expense-Course Fees,1403,L2 DIPLOMA IN HORTICULTURE TUITION FEES ,03/02/2016,0000400448,400.00,Revenue,MYERSCOUGH COLLEGE,00026453
South Ribble Council,http://statistics.data.gov.uk/doc/local-authority/30UN,Regeneration,Other Misc,4851,Marquee & Gazebo hire for Leyland Christmas Festival on 28th December 2015,10/02/2016,0000400554,976.00,Revenue,NATIONWIDE MARQUEE HIRE LTD,130006
South Ribble Council,http://statistics.data.gov.uk/doc/local-authority/30UN,Property Services,Client Internal Charges,4590,"Weekly waste removal at Leyland Market, Leyland - for 2015/2016 - 10 yard FEL - 74.49 per lift ",18/02/2016,0000400869,317.96,Revenue,NEALES WASTE MANAGEMENT,130129
South Ribble Council,http://statistics.data.gov.uk/doc/local-authority/30UN,Homelessness,Contractors Charges 5,5313,"Void Loss East Street 21 East Street Charge period 17/8/15  20/9/15 weeks at 112.75 pwk",18/02/2016,0000400911,547.02,Revenue,NEW PROGRESS HOUSING ASSOC ref:DNSOU001,00030135
South Ribble Council,http://statistics.data.gov.uk/doc/local-authority/30UN,Homelessness,Contractors Charges 5,5313,"Void Loss East Street 21 East Street Charge period 17/8/15  20/9/15 5 weeks at 112.75 pwk",24/02/2016,0000400913,563.75,Revenue,NEW PROGRESS HOUSING ASSOC ref:DNSOU001,00030135
South Ribble Council,http://statistics.data.gov.uk/doc/local-authority/30UN,Homelessness,Contractors Charges 5,5313,"Void Loss Pine Court Properties ADDRESS REDACTEDt - 24/08/15-06/09/15, 2 weeks at 89.65 p/w",18/02/2016,0000400915,806.85,Revenue,NEW PROGRESS HOUSING ASSOC ref:DNSOU001,00030135
South Ribble Council,http://statistics.data.gov.uk/doc/local-authority/30UN,Homelessness,Contractors Charges 5,5313,"Void Loss ADDRESS REDACTED, 05/10/15-11/10/15, 1 week at 97.71 p/w",18/02/2016,0000400917,879.39,Revenue,NEW PROGRESS HOUSING ASSOC ref:DNSOU001,00030135
South Ribble Council,http://statistics.data.gov.uk/doc/local-authority/30UN,Homelessness,Contractors Charges 5,5313,"Void Loss Pine Court Properties ADDRESS REDACTED - 24/08/15-06/09/15, 2 weeks at 89.65 p/w",18/02/2016,0000400918,268.95,Revenue,NEW PROGRESS HOUSING ASSOC ref:DNSOU001,00030135
South Ribble Council,http://statistics.data.gov.uk/doc/local-authority/30UN,Homelessness,Contractors Charges 5,5313,"Void Loss Pine Court Properties  ADDRESS REDACTED - 24/08/15-06/09/15, 2 weeks at 89.65 p/w",18/02/2016,0000400920,268.95,Revenue,NEW PROGRESS HOUSING ASSOC ref:DNSOU001,00030135
South Ribble Council,http://statistics.data.gov.uk/doc/local-authority/30UN,Homelessness,Contractors Charges 5,5313,"Void Loss Pine Court Properties  ADDRESS REDACTED - 24/08/15-06/09/15, 2 weeks at 89.65 p/w",18/02/2016,0000400921,395.64,Revenue,NEW PROGRESS HOUSING ASSOC ref:DNSOU001,00030135
South Ribble Council,http://statistics.data.gov.uk/doc/local-authority/30UN,Homelessness,Contractors Charges 5,5313,"Void Loss Pine Court Properties ADDRESS REDACTED - 24/08/15-06/09/15, 2 weeks at 89.65 p/w",18/02/2016,0000400922,986.15,Revenue,NEW PROGRESS HOUSING ASSOC ref:DNSOU001,00030135
South Ribble Council,http://statistics.data.gov.uk/doc/local-authority/30UN,Homelessness,Contractors Charges 5,5313,"Void Loss  ADDRESS REDACTED, 05/10/15-11/10/15, 1 week at 97.71 p/w",18/02/2016,0000400923,353.80,Revenue,NEW PROGRESS HOUSING ASSOC ref:DNSOU001,00030135
South Ribble Council,http://statistics.data.gov.uk/doc/local-authority/30UN,Regeneration,Capital Expenditure,C234,Plant Maintenance,24/02/2016,0000400833,970.00,Revenue,NEWGATE NURSERIES,00069591
South Ribble Council,http://statistics.data.gov.uk/doc/local-authority/30UN,Property Services,Rep & Maint Premises,2020,2015 / 2016 gold service contract for the sewerage pumps at worden park,18/02/2016,0000400871,450.00,Revenue,NORTH WEST MAINTENANCE SERVICES LTD,00114763
South Ribble Council,http://statistics.data.gov.uk/doc/local-authority/30UN,Neighbourhood Admin & Support,Materials General,4040,MINI SWEEPER BRUSHES 71107/1,05/02/2016,0000396709,404.54,Revenue,NORTHERN MUNICIPAL SPARES LTD,00117061
South Ribble Council,http://statistics.data.gov.uk/doc/local-authority/30UN,Neighbourhood Admin & Support,Materials General,4040,4 ROW CHANNEL BRUSH 835/55,05/02/2016,0000396709,130.37,Revenue,NORTHERN MUNICIPAL SPARES LTD,00117061
South Ribble Council,http://statistics.data.gov.uk/doc/local-authority/30UN,Area 1 - Penwortham Western Parishes,Professional Fees,4514,DEPLOYMENT OF OFFICERS JANUARY 2016,12/02/2016,0000400526,"1,216.02",Revenue,NSL LTD,00116868
South Ribble Council,http://statistics.data.gov.uk/doc/local-authority/30UN,Area 1 - Penwortham Western Parishes,Other Misc,4855,CASH COLLECTION JANUARY 2016,12/02/2016,0000400526,173.12,Revenue,NSL LTD,00116868
South Ribble Council,http://statistics.data.gov.uk/doc/local-authority/30UN,HR & Communications,Training Expense-Course Fees,1405,SAFEGUARDING TRAINING FOR SRBC STAFF,03/02/2016,0000400447,400.00,Revenue,P THRELFALL SAFEGUARDING LTD,130382
South Ribble Council,http://statistics.data.gov.uk/doc/local-authority/30UN,Democratic Services,Balance Sheet,0400,5 x V1 Polling Booths,24/02/2016,0000400899,"1,345.00",Revenue,PAKFLATT (UK) LTD,00114255
South Ribble Council,http://statistics.data.gov.uk/doc/local-authority/30UN,Democratic Services,Balance Sheet,0400,carriage,24/02/2016,0000400899,60.00,Revenue,PAKFLATT (UK) LTD,00114255
South Ribble Council,http://statistics.data.gov.uk/doc/local-authority/30UN,Environmental Health,Professional Fees,4522,Gov fee,12/02/2016,0000400858,660.00,Revenue,Personnel Checks,131483
South Ribble Council,http://statistics.data.gov.uk/doc/local-authority/30UN,Environmental Health,Professional Fees,4522,admin fee,12/02/2016,0000400858,199.95,Revenue,Personnel Checks,131483
South Ribble Council,http://statistics.data.gov.uk/doc/local-authority/30UN,Environmental Health,Operational Furniture & Equip,4010,Chairs as per quotation SQUO00104961 dated 11.12.15.,03/02/2016,0000395183,139.50,Revenue,PREMIER OFFICE SUPPLES (UK) LTD,00090159
South Ribble Council,http://statistics.data.gov.uk/doc/local-authority/30UN,Environmental Health,Operational Furniture & Equip,4010,As Above,03/02/2016,0000395183,139.50,Revenue,PREMIER OFFICE SUPPLES (UK) LTD,00090159
South Ribble Council,http://statistics.data.gov.uk/doc/local-authority/30UN,Information Services,Stationery,4133,"50,000 Evolution Everyday A4 80gm 15,000 Evolution Business A4 90gm",03/02/2016,0000395707,308.45,Revenue,PREMIER PAPER GROUP LTD,00022606
South Ribble Council,http://statistics.data.gov.uk/doc/local-authority/30UN,Environmental Health,Consultancy Fees,4541,"Preston City Council for the attention of , Divisional Administrator, Community Services, Town Hall ",03/02/2016,0000395288,"1,520.00",Revenue,PRESTON CITY COUNCIL,00031435
South Ribble Council,http://statistics.data.gov.uk/doc/local-authority/30UN,Area 3 - Parks/Leyland East West,Grounds Maint Cntrctrs Chgs,4657,SUPPLY ONLY SAND CHUTE SPARES FOR G3373 AS PER YOUR QUOTATION 1511.11186,18/02/2016,0000388661,439.00,Revenue,PROLUDIC LTD,00083263
South Ribble Council,http://statistics.data.gov.uk/doc/local-authority/30UN,Area 3 - Parks/Leyland East West,Grounds Maint Cntrctrs Chgs,4657,Square parts for J2646m (aquatic) as per quotation 1601.11594 Parts include ramp platform riser and,18/02/2016,0000398345,865.00,Revenue,PROLUDIC LTD,00083263
South Ribble Council,http://statistics.data.gov.uk/doc/local-authority/30UN,Area 3 - Parks/Leyland East West,Grounds Maint Cntrctrs Chgs,4657,Delivery,18/02/2016,0000398345,87.00,Revenue,PROLUDIC LTD,00083263
South Ribble Council,http://statistics.data.gov.uk/doc/local-authority/30UN,Area 3 - Parks/Leyland East West,Grounds Maint Cntrctrs Chgs,4657,5x E29520 Orange panel lip @ 52.53.,18/02/2016,0000400556,262.65,Revenue,PROLUDIC LTD,00083263
South Ribble Council,http://statistics.data.gov.uk/doc/local-authority/30UN,Area 3 - Parks/Leyland East West,Grounds Maint Cntrctrs Chgs,4657,Delivery,18/02/2016,0000400556,26.00,Revenue,PROLUDIC LTD,00083263
South Ribble Council,http://statistics.data.gov.uk/doc/local-authority/30UN,Information Services,Postage,4292,789-BL  Blue ink cartridges for franking machine,03/02/2016,0000395629,334.94,Revenue,Purchase Power,00093923
South Ribble Council,http://statistics.data.gov.uk/doc/local-authority/30UN,Information Services,Processing-Internal,4212,Penetration Test as per quote,10/02/2016,0000397849,"7,150.00",Revenue,RANDOM STORM LIMITED,131461
South Ribble Council,http://statistics.data.gov.uk/doc/local-authority/30UN,Information Services,Processing-Internal,4212,xStorm / iStorm annual renewal for period January 2016 - January 2017,12/02/2016,0000400859,"7,140.00",Revenue,RANDOM STORM LIMITED,131461
South Ribble Council,http://statistics.data.gov.uk/doc/local-authority/30UN,Property Services,Repair Costs,4052,Leyland Lane garages - as per quotes - please carry out work for demolition of two garages disposal,10/02/2016,0000395543,950.00,Revenue,RED ROSE BUILDING MAINTENANCE,00085410
South Ribble Council,http://statistics.data.gov.uk/doc/local-authority/30UN,Property Services,Repair Costs,4052,MATERIALS,10/02/2016,0000395543,"2,500.00",Revenue,RED ROSE BUILDING MAINTENANCE,00085410
South Ribble Council,http://statistics.data.gov.uk/doc/local-authority/30UN,Property Services,Rep & Maint Premises,2020,red frog worden park provide all protective coverings to floors and door. Knock off all of the plaster,10/02/2016,0000395551,472.50,Revenue,RED ROSE BUILDING MAINTENANCE,00085410
South Ribble Council,http://statistics.data.gov.uk/doc/local-authority/30UN,Property Services,Rep & Maint Premises,2020,materials,10/02/2016,0000395551,145.00,Revenue,RED ROSE BUILDING MAINTENANCE,00085410
South Ribble Council,http://statistics.data.gov.uk/doc/local-authority/30UN,Property Services,Rep & Maint Premises,2020,ADDRESS REDACTED Hire a tail lift van  - collect all polling station equipment and relocate ,05/02/2016,0000400483,756.00,Revenue,RED ROSE BUILDING MAINTENANCE,00085410
South Ribble Council,http://statistics.data.gov.uk/doc/local-authority/30UN,Property Services,Rep & Maint Premises,2020,ADDRESS REDACTED Hire a tail lift van  - collect all polling station equipment and relocate ,18/02/2016,0000400848,"1,820.00",Revenue,RED ROSE BUILDING MAINTENANCE,00085410
South Ribble Council,http://statistics.data.gov.uk/doc/local-authority/30UN,Area 3 - Parks/Leyland East West,Grounds Maint Cntrctrs Chgs,4657,"ADDITIONAL WORKS TO OUTLET, WORDEN PARK FISH POND",03/02/2016,0000394270,"1,920.00",Revenue,Reid Construction & Civil Engineering Ltd,131544
South Ribble Council,http://statistics.data.gov.uk/doc/local-authority/30UN,Area 3 - Parks/Leyland East West,Grounds Maint Cntrctrs Chgs,4657,Worden Park Fish Pond,03/02/2016,0000394271,620.00,Revenue,Reid Construction & Civil Engineering Ltd,131544
South Ribble Council,http://statistics.data.gov.uk/doc/local-authority/30UN,Neighbourhood Admin & Support,Vehicle Running Costs,3132,Diesel,18/02/2016,0000401191,"11,395.60",Revenue,RIBBLE FUEL OILS,00047461
South Ribble Council,http://statistics.data.gov.uk/doc/local-authority/30UN,Area 2 - Waste Transport/Eastern & Central Teams,External Contractors Charges,4570,Service and calibration to workshop equipment.,26/02/2016,0000401252,899.90,Revenue,S & R GARAGE EQUIPMENT,130892
South Ribble Council,http://statistics.data.gov.uk/doc/local-authority/30UN,Environmental Health,External Contractors Charges,4570,500 Sandless sandbags @ 3.00 each = 1500 plus vat.,10/02/2016,0000400538,"1,500.00",Revenue,S G BAKER LTD,131348
South Ribble Council,http://statistics.data.gov.uk/doc/local-authority/30UN,Property Services,Energy Costs,2303,1/12/15 to 31/12/15,03/02/2016,0000395589,264.27,Revenue,SCOTTISH HYDRO ELECTRIC,130051
South Ribble Council,http://statistics.data.gov.uk/doc/local-authority/30UN,Property Services,Energy Costs,2307,levy,03/02/2016,0000395589,11.91,Revenue,SCOTTISH HYDRO ELECTRIC,130051
South Ribble Council,http://statistics.data.gov.uk/doc/local-authority/30UN,Property Services,Energy Costs,2303,2/10/15 to 1/1/16,03/02/2016,0000395590,387.21,Revenue,SCOTTISH HYDRO ELECTRIC,130051
South Ribble Council,http://statistics.data.gov.uk/doc/local-authority/30UN,Property Services,Energy Costs,2303,1/12/15 to 31/12/15,03/02/2016,0000395597,"1,089.89",Revenue,SCOTTISH HYDRO ELECTRIC,130051
South Ribble Council,http://statistics.data.gov.uk/doc/local-authority/30UN,Property Services,Energy Costs,2303,1/12/15 to 31/12/15,03/02/2016,0000395599,"2,717.41",Revenue,SCOTTISH HYDRO ELECTRIC,130051
South Ribble Council,http://statistics.data.gov.uk/doc/local-authority/30UN,Property Services,Energy Costs,2307,levy,03/02/2016,0000395599,141.40,Revenue,SCOTTISH HYDRO ELECTRIC,130051
South Ribble Council,http://statistics.data.gov.uk/doc/local-authority/30UN,Property Services,Energy Costs,2303,2/10/15 to 1/1/16,03/02/2016,0000395600,269.54,Revenue,SCOTTISH HYDRO ELECTRIC,130051
South Ribble Council,http://statistics.data.gov.uk/doc/local-authority/30UN,Property Services,Energy Costs,2303,10/11/15 to 1/1/16,03/02/2016,0000395601,692.30,Revenue,SCOTTISH HYDRO ELECTRIC,130051
South Ribble Council,http://statistics.data.gov.uk/doc/local-authority/30UN,Property Services,Energy Costs,2303,1/12/15 to 31/12/15,03/02/2016,0000395609,"2,325.45",Revenue,SCOTTISH HYDRO ELECTRIC,130051
South Ribble Council,http://statistics.data.gov.uk/doc/local-authority/30UN,Property Services,Energy Costs,2304,28/8/15 to 26/11/15,03/02/2016,0000395704,392.06,Revenue,SCOTTISH HYDRO ELECTRIC,130051
South Ribble Council,http://statistics.data.gov.uk/doc/local-authority/30UN,Property Services,Energy Costs,2304,7/1/16 to 4/2/16,24/02/2016,0000400934,"1,782.02",Revenue,SCOTTISH HYDRO ELECTRIC,130051
South Ribble Council,http://statistics.data.gov.uk/doc/local-authority/30UN,Property Services,Energy Costs,2307,levy,24/02/2016,0000400934,124.95,Revenue,SCOTTISH HYDRO ELECTRIC,130051
South Ribble Council,http://statistics.data.gov.uk/doc/local-authority/30UN,Property Services,Energy Costs,2303,1/4/15 to 30/4/15,24/02/2016,0000401466,312.67,Revenue,SCOTTISH HYDRO ELECTRIC,130051
South Ribble Council,http://statistics.data.gov.uk/doc/local-authority/30UN,Property Services,Energy Costs,2303,1/12/15 to 31/12/15,24/02/2016,0000401474,264.27,Revenue,SCOTTISH HYDRO ELECTRIC,130051
South Ribble Council,http://statistics.data.gov.uk/doc/local-authority/30UN,Property Services,Energy Costs,2303,1/1/16 to 31/1/16,24/02/2016,0000401475,377.62,Revenue,SCOTTISH HYDRO ELECTRIC,130051
South Ribble Council,http://statistics.data.gov.uk/doc/local-authority/30UN,Property Services,Energy Costs,2303,withy grove pavillion,26/02/2016,0000401478,592.30,Revenue,SCOTTISH HYDRO ELECTRIC,130051
South Ribble Council,http://statistics.data.gov.uk/doc/local-authority/30UN,Property Services,Energy Costs,2303,Leyland market,26/02/2016,0000401479,"1,032.53",Revenue,SCOTTISH HYDRO ELECTRIC,130051
South Ribble Council,http://statistics.data.gov.uk/doc/local-authority/30UN,Property Services,Energy Costs,2303,1/1/16 to 31/1/16,26/02/2016,0000401481,"2,923.63",Revenue,SCOTTISH HYDRO ELECTRIC,130051
South Ribble Council,http://statistics.data.gov.uk/doc/local-authority/30UN,Property Services,Energy Costs,2307,levy,26/02/2016,0000401481,152.17,Revenue,SCOTTISH HYDRO ELECTRIC,130051
South Ribble Council,http://statistics.data.gov.uk/doc/local-authority/30UN,Property Services,Energy Costs,2303,Moss side depot,26/02/2016,0000401489,"2,375.86",Revenue,SCOTTISH HYDRO ELECTRIC,130051
South Ribble Council,http://statistics.data.gov.uk/doc/local-authority/30UN,Regeneration,Consultancy Fees,4536,"R & M 2015/16 payable by 12 monthly instalments of 13,141.90",03/02/2016,0000383444,"105,135.20",Revenue,SERCO LEISURE (OP) LTD,00094906
South Ribble Council,http://statistics.data.gov.uk/doc/local-authority/30UN,Regeneration,Consultancy Fees,4536,"R & M 2015/16 payable by 12 monthly instalments of 13,141.90",24/02/2016,0000400539,"13,141.90",Revenue,SERCO LEISURE (OP) LTD,00094906
South Ribble Council,http://statistics.data.gov.uk/doc/local-authority/30UN,Democratic Services,Balance Sheet,0400,2 x 500 Arrow-lock Ballot Box Seal `Linpac` Ref: BBS2 125 Polling Station Notices PCC6 attached,18/02/2016,0000400872,260.00,Revenue,SHAW & SONS LTD,00034542
South Ribble Council,http://statistics.data.gov.uk/doc/local-authority/30UN,Neighbourhood Admin & Support,Clothing- Uniforms & Laundry,4410,SWEATSHIRT NAVY - extra large - CSR36,18/02/2016,0000401240,19.50,Revenue,SMART IMAGE WORKWEAR,00031503
South Ribble Council,http://statistics.data.gov.uk/doc/local-authority/30UN,Neighbourhood Admin & Support,Clothing- Uniforms & Laundry,4410,BALLISTIC TROUSERS - large - CSR39,18/02/2016,0000401240,187.50,Revenue,SMART IMAGE WORKWEAR,00031503
South Ribble Council,http://statistics.data.gov.uk/doc/local-authority/30UN,Neighbourhood Admin & Support,Clothing- Uniforms & Laundry,4410,BALLISTIC TROUSERS - medium - CSR39,18/02/2016,0000401240,187.50,Revenue,SMART IMAGE WORKWEAR,00031503
South Ribble Council,http://statistics.data.gov.uk/doc/local-authority/30UN,HR & Communications,Training Expense-Course Fees,1405,Training course,05/02/2016,0000395515,"2,300.00",Revenue,SMC LTD,130911
South Ribble Council,http://statistics.data.gov.uk/doc/local-authority/30UN,Information Services,Peripherals,4248,SORCE support and maintenance agreement  1/4/16 to 31/3/17,26/02/2016,0000401526,"5,700.46",Revenue,SORCE LTD,00080509
South Ribble Council,http://statistics.data.gov.uk/doc/local-authority/30UN,Regeneration,Consultancy Fees,4532,"Leisure Services Fees 2015/16 (296,122.78) payable by 12 monthly instalments of 24,676.90 ",03/02/2016,0000395266,"74,030.70",Revenue,SOUTH RIBBLE COMMUNITY LEISURE LTD,00094210
South Ribble Council,http://statistics.data.gov.uk/doc/local-authority/30UN,Regeneration,Consultancy Fees,4532,"Leisure Services Fees 2015/16 (296,122.78) payable by 12 monthly instalments of 24,676.90 ",03/02/2016,0000395267,"74,030.70",Revenue,SOUTH RIBBLE COMMUNITY LEISURE LTD,00094210
South Ribble Council,http://statistics.data.gov.uk/doc/local-authority/30UN,Regeneration,Consultancy Fees,4532,"Leisure Services Fees 2015/16 (296,122.78) payable by 12 monthly instalments of 24,676.90 ",03/02/2016,0000395268,"74,030.70",Revenue,SOUTH RIBBLE COMMUNITY LEISURE LTD,00094210
South Ribble Council,http://statistics.data.gov.uk/doc/local-authority/30UN,Neighbourhood Admin & Support,Operational Furniture & Equip,4010,LITTER PICKER (CURVED) - HA340,26/02/2016,0000401452,306.00,Revenue,SPALDINGS,00070849
South Ribble Council,http://statistics.data.gov.uk/doc/local-authority/30UN,Neighbourhood Admin & Support,Operational Furniture & Equip,4010, RAKE - SPRINGBOK (20 tine c/w 54`` handle) - 04101,26/02/2016,0000401452,56.24,Revenue,SPALDINGS,00070849
South Ribble Council,http://statistics.data.gov.uk/doc/local-authority/30UN,Neighbourhood Admin & Support,Operational Furniture & Equip,4010,BLADES FOR PRUNING SAW - 30694,26/02/2016,0000401452,15.64,Revenue,SPALDINGS,00070849
South Ribble Council,http://statistics.data.gov.uk/doc/local-authority/30UN,Neighbourhood Admin & Support,Operational Furniture & Equip,4010, BULLDOG PREMIER PRUNING SAW - 30693,26/02/2016,0000401452,36.00,Revenue,SPALDINGS,00070849
South Ribble Council,http://statistics.data.gov.uk/doc/local-authority/30UN,Neighbourhood Admin & Support,Materials General,4040,Antibacterial wipes,26/02/2016,0000401452,54.00,Revenue,SPALDINGS,00070849
South Ribble Council,http://statistics.data.gov.uk/doc/local-authority/30UN,Neighbourhood Admin & Support,Vehicle Running Costs,3132,15000ltrs of diesel @ 0.77per ltr. Delivery 26/01/2016,05/02/2016,0000395587,"11,684.22",Revenue,Standard Fuel Oils LtdMain,131556
South Ribble Council,http://statistics.data.gov.uk/doc/local-authority/30UN,Property Services,Peripherals,4243,Provision of energy management system 2015 / 2016,05/02/2016,0000395626,333.00,Revenue,STC ENERGY MANAGEMENT LTD,00005568
South Ribble Council,http://statistics.data.gov.uk/doc/local-authority/30UN,Area 3 - Parks/Leyland East West,Grounds Maint Cntrctrs Chgs,4657,1x Square Platform (Code 1200000) 0.8m x 0.8m.,03/02/2016,0000395215,280.00,Revenue,SUTCLIFFE PLAY LTD,00034953
South Ribble Council,http://statistics.data.gov.uk/doc/local-authority/30UN,Area 3 - Parks/Leyland East West,Grounds Maint Cntrctrs Chgs,4657,carriage & packing,03/02/2016,0000395215,28.00,Revenue,SUTCLIFFE PLAY LTD,00034953
South Ribble Council,http://statistics.data.gov.uk/doc/local-authority/30UN,Area 3 - Parks/Leyland East West,Grounds Maint Cntrctrs Chgs,4657,KAISER CLIMBING WALL FOR MULTICLIMBER AS PER ATTACHED QUOTATION,24/02/2016,0000400811,623.03,Revenue,SUTCLIFFE PLAY LTD,00034953
South Ribble Council,http://statistics.data.gov.uk/doc/local-authority/30UN,Area 3 - Parks/Leyland East West,Grounds Maint Cntrctrs Chgs,4657,CARRIAGE,24/02/2016,0000400811,62.30,Revenue,SUTCLIFFE PLAY LTD,00034953
South Ribble Council,http://statistics.data.gov.uk/doc/local-authority/30UN,Property Services,Cleaning and Domestic Supplies,2711,Provision of janitorial products for the Civic Centre,10/02/2016,0000400541,350.87,Revenue,SWIFT KLEEN,00119360
South Ribble Council,http://statistics.data.gov.uk/doc/local-authority/30UN,Neighbourhood Admin & Support,Materials General,4040,TOILET TISSUE - BULK PACK - 2522BP,10/02/2016,0000400557,80.80,Revenue,SWIFT KLEEN,00119360
South Ribble Council,http://statistics.data.gov.uk/doc/local-authority/30UN,Neighbourhood Admin & Support,Materials General,4040,ATLAS PINE DISINFECTANT  5 LTR - WPD,10/02/2016,0000400557,6.60,Revenue,SWIFT KLEEN,00119360
South Ribble Council,http://statistics.data.gov.uk/doc/local-authority/30UN,Neighbourhood Admin & Support,Materials General,4040,PROTECT CLEANER DISINFECTANT - PRO,10/02/2016,0000400557,32.76,Revenue,SWIFT KLEEN,00119360
South Ribble Council,http://statistics.data.gov.uk/doc/local-authority/30UN,Neighbourhood Admin & Support,Clothing- Uniforms & Laundry,4410,DISPOSABLE GLOVES NITRILE - NITPF + MEDIUM,10/02/2016,0000400557,70.80,Revenue,SWIFT KLEEN,00119360
South Ribble Council,http://statistics.data.gov.uk/doc/local-authority/30UN,Neighbourhood Admin & Support,Clothing- Uniforms & Laundry,4410,DISPOSABLE GLOVES NITRILE - NITPF + LARGE,10/02/2016,0000400557,35.40,Revenue,SWIFT KLEEN,00119360
South Ribble Council,http://statistics.data.gov.uk/doc/local-authority/30UN,Neighbourhood Admin & Support,Clothing- Uniforms & Laundry,4410,DISPOSABLE GLOVES NITRILE - NITPF + XLARGE,10/02/2016,0000400557,35.40,Revenue,SWIFT KLEEN,00119360
South Ribble Council,http://statistics.data.gov.uk/doc/local-authority/30UN,Area 2 - Waste Transport/Eastern & Central Teams,Materials General,4040,"3 BEARINGS, 6 WASHERS, 3 PINS & NUTS - VK09 AHJ - JFC6292 - AW",10/02/2016,0000400542,815.32,Revenue,TERBERG MATEC UK LTD,00058625
South Ribble Council,http://statistics.data.gov.uk/doc/local-authority/30UN,Housing,Contributions,4730,Supply and fit upvc double glazing as part of winter warmth scheme,03/02/2016,0000396892,429.17,Revenue,TRADE WINDOWS & CONSERVATORIES,00119823
South Ribble Council,http://statistics.data.gov.uk/doc/local-authority/30UN,Housing,Contributions,4730,Supply and fit upvc double glazing as part of winter warmth scheme,03/02/2016,0000396930,958.33,Revenue,TRADE WINDOWS & CONSERVATORIES,00119823
South Ribble Council,http://statistics.data.gov.uk/doc/local-authority/30UN,Housing,Contributions,4730,Supply and fit upvc double glazing as part of winter warmth scheme,03/02/2016,0000396959,"1,391.67",Revenue,TRADE WINDOWS & CONSERVATORIES,00119823
South Ribble Council,http://statistics.data.gov.uk/doc/local-authority/30UN,Neighbourhood Admin & Support,External Contractors Charges,4570,"ANNUAL ODYSSEY LICENCE RENEWAL FUEL SYSTEM - MOSS SIDE DEPOT3.3.16 - 2.3.17",03/02/2016,0000396992,"1,287.50",Revenue,TRISCAN SYSTEMS LIMITED,00108339
South Ribble Council,http://statistics.data.gov.uk/doc/local-authority/30UN,Area 1 - Penwortham Western Parishes,External Contractors Charges,4570,CLEANING OF SIGNS WITHIN THE BOROUGH.  TO BE CLEANED W/C 1/2/16 AND W/C 8/2/16,24/02/2016,0000401270,"1,400.00",Revenue,ULTRA CLEAN CONSERVATORIES,130034
South Ribble Council,http://statistics.data.gov.uk/doc/local-authority/30UN,Area 3 - Parks/Leyland East West,Rep & Maint Premises,2020,water connection,24/02/2016,0000401276,305.00,Revenue,United Utilities Water Connections,130895
South Ribble Council,http://statistics.data.gov.uk/doc/local-authority/30UN,Healthy Communities,Operational Furniture & Equip,4012,coffee machine hire Feb,10/02/2016,0000395625,322.11,Revenue,VENDING ENTERPRISES,00101501
South Ribble Council,http://statistics.data.gov.uk/doc/local-authority/30UN,Information Services,Peripherals,4269,"Annual purchase order for ISDN lines, line rentals & call charges for period 01/04/15 - 31/03/16",03/02/2016,0000400444,"1,309.97",Revenue,VODAFONE RE:CABLE & WIRELESS UK,130810
South Ribble Council,http://statistics.data.gov.uk/doc/local-authority/30UN,Information Services,Peripherals,4247,"Annual purchase order for link, internet & router for period 01/04/15 - 31/03/16",10/02/2016,0000400543,"1,312.66",Revenue,VODAFONE RE:CABLE & WIRELESS UK,130810
South Ribble Council,http://statistics.data.gov.uk/doc/local-authority/30UN,Legal,Balance Sheet,0030,Test Track Development Costs associated with the Test Track Development More than one invoice will ,10/02/2016,0000400840,988.00,Revenue,WEIGHTMANS LLP,00120867
South Ribble Council,http://statistics.data.gov.uk/doc/local-authority/30UN,Property Services,Rep & Maint Premises,2020,"arrange to pick  up the ACM panel from the Civic Centre as discussed at site meeting, day and date",05/02/2016,0000395624,"1,475.53",Revenue,WELDLAG (PRESTON) LTD,00099299
South Ribble Council,http://statistics.data.gov.uk/doc/local-authority/30UN,Revenues Plus,Postage,4291,Mail Services - Revenues - January,10/02/2016,0000400567,500.37,Revenue,WHISTL  UK LTD,131310
South Ribble Council,http://statistics.data.gov.uk/doc/local-authority/30UN,Revenues Plus,Postage,4291,Mail Services - Revenues - January,18/02/2016,0000401194,525.74,Revenue,WHISTL  UK LTD,131310
South Ribble Council,http://statistics.data.gov.uk/doc/local-authority/30UN,Healthy Communities,Other Misc,4851,3 delegate Tickets for Why Sports Conference 2016 - NAMES REDACTED,05/02/2016,0000400489,600.00,Revenue,Why Sports Media Group Limited,131827
South Ribble Council,http://statistics.data.gov.uk/doc/local-authority/30UN,Area 3 - Parks/Leyland East West,Other Misc,4851,Timber Entrance Signs for Gregson Green,18/02/2016,0000395623,"2,375.00",Revenue,WOODSTOCK SIGNS,00039039
South Ribble Council,http://statistics.data.gov.uk/doc/local-authority/30UN,Property Services,Rep & Maint Premises,2024,carry out work as detailed in the e-mail from Property services dated 11th December. Install PRV - due,10/02/2016,0000400461,305.49,Revenue,Wright Build Limited,131203
South Ribble Council,http://statistics.data.gov.uk/doc/local-authority/30UN,Property Services,Rep & Maint Premises,2020,site and supply goods as quoted. Cost for new flooring to gents toilet first floor and new plywood,24/02/2016,0000401271,"1,665.20",Revenue,Wright Build Limited,131203
South Ribble Council,http://statistics.data.gov.uk/doc/local-authority/30UN,Property Services,Rep & Maint Premises,2020,attend site and supply goods. turn off the water supply to the urinals remove all the waste supplies,24/02/2016,0000401273,608.38,Revenue,Wright Build Limited,131203
